bitfinex-derivatives/quotes_ETHF0:USTF0_20250505
["timestamp","ask_amount","ask_price","bid_price","bid_amount"]
[1746412067398,3.7104478,1795.8,1795.7,7.81174]
[1746412067597,3.7104478,1795.8,1795.7,9.96594]
[1746412068600,3.7104478,1795.8,1795.7,13.91494]
[1746412069998,2.1201,1795.9,1795.8,1.11365]
[1746412070302,2.1201,1795.9,1795.8,2.00238]
[1746412070499,2.1201,1795.9,1795.8,1.11365]
[1746412070896,3.23369,1795.9,1795.8,1.11365]
[1746412071202,6.96574,1795.9,1795.7,9.29417]
[1746412071498,6.96574,1795.9,1795.8,1.11365]
[1746412071499,5.8521,1795.9,1795.8,1.11365]
[1746412071700,5.8521,1795.9,1795.8,3.24875]
[1746412071893,5.84741984,1795.9,1795.8,3.24875]
[1746412072200,3.7104478,1796.1,1796.0,1.11353]
[1746412072590,3.7104478,1796.1,1796.0,5.06253]
[1746412072591,1.2683178,1796.1,1796.0,5.06253]
[1746412072893,1e-08,1796.1,1796.0,18.42976]
[1746412073100,6.25468091,1796.3,1796.2,2.00213]
[1746412073302,6.25468091,1796.3,1796.2,5.20993]
[1746412073488,6.25468091,1796.3,1796.2,10.20993]
[1746412073692,6.25468091,1796.3,1796.2,48.10743]
[1746412074500,5.56231571,1796.3,1796.2,48.10743]
[1746412075099,5.16153953,1796.5,1796.4,2.00201]
[1746412075300,5.16153953,1796.5,1796.4,9.15781]
[1746412075697,5.16153953,1796.5,1796.4,5.95001]
[1746412075899,5.16153953,1796.5,1796.4,48.80601]
[1746412076197,8.89353953,1796.5,1796.4,48.80601]
[1746412078206,3.732,1796.5,1796.4,48.80601]
[1746412078905,3.2078,1797.0,1796.8,1.11299]
[1746412079098,2.0892,1796.9,1796.8,1.11299]
[1746412080100,5.8212,1796.9,1796.8,1.11299]
[1746412080394,5.8212,1796.9,1796.8,5.49959]
[1746412085700,3.732,1796.9,1796.8,7.46492]
[1746412085900,3.732,1796.9,1796.8,9.61362]
[1746412086098,3.732,1796.9,1796.8,50.41362]
[1746412087502,1.54515041,1796.9,1796.8,55.41362]
[1746412087703,2.1643,1797.3,1797.2,1.11278]
[1746412087899,3.2078,1797.4,1797.3,2.00145]
[1746412088203,9.1041,1797.4,1797.3,2.00145]
[1746412088602,9.1041,1797.4,1797.3,4.18955]
[1746412089702,9.1041,1797.4,1797.3,2.00145]
[1746412090303,9.1041,1797.4,1797.3,4.18955]
[1746412091210,10.21678,1797.4,1797.2,7.25903]
[1746412091409,2.199,1797.3,1797.2,8.14776]
[1746412091710,3.31172,1797.3,1797.2,4.82673]
[1746412092008,3.31172,1797.3,1797.2,40.8]
[1746412092210,7.04372,1797.3,1797.2,40.8]
[1746412092409,12.04372,1797.3,1797.2,40.8]
[1746412093512,1.11284,1797.1,1797.0,3.937]
[1746412094005,1.11284,1797.1,1797.0,44.737]
[1746412094205,11.67074,1797.1,1797.0,44.737]
[1746412095107,10.5579,1797.1,1797.0,45.84991]
[1746412095604,10.5579,1797.1,1797.0,46.73864]
[1746412095810,8.3185,1797.1,1797.0,46.73864]
[1746412096112,6.0111,1797.1,1797.0,46.73864]
[1746412096810,3.732,1797.1,1797.0,48.96374]
[1746412097009,3.732,1797.1,1797.0,51.07114]
[1746412097211,3.732,1797.2,1797.1,1.11284]
[1746412097411,3.732,1797.2,1797.1,3.23884]
[1746412097708,5.9111,1797.2,1797.1,4.12757]
[1746412098109,5.9111,1797.2,1797.1,2.00157]
[1746412101114,3.732,1797.2,1797.1,2.00157]
[1746412101316,3.732,1797.2,1797.1,4.16567]
[1746412102111,3.2078,1797.4,1797.3,1.11272]
[1746412102317,3.2078,1797.4,1797.3,5.93845]
[1746412102708,5.4456,1797.4,1797.3,5.93845]
[1746412103229,9.1776,1797.4,1797.3,5.93845]
[1746412103508,10.29026,1797.4,1797.3,3.937]
[1746412103713,9.1776,1797.4,1797.3,5.04972]
[1746412104110,10.29026,1797.4,1797.3,3.937]
[1746412104306,14.47602634,1797.4,1797.0,43.0251]
[1746412104510,4.32064,1797.1,1797.0,44.737]
[1746412104807,1.11297,1796.9,1796.8,3.937]
[1746412105016,4.61919328,1796.9,1796.8,3.937]
[1746412105212,8.35123998,1796.9,1796.8,3.937]
[1746412105411,15.60923998,1796.9,1796.8,3.937]
[1746412105611,10.60923998,1796.9,1796.8,3.937]
[1746412106120,1.11309,1796.7,1796.6,40.8]
[1746412107108,4.84509,1796.7,1796.6,40.8]
[1746412107311,3.732,1796.7,1796.6,40.8]
[1746412107823,6.0006,1796.7,1796.6,42.80188]
[1746412108011,6.0006,1796.7,1796.6,47.08578]
[1746412108718,6.0006,1796.7,1796.6,51.02278]
[1746412108920,6.0006,1796.7,1796.6,47.74803]
[1746412109613,6.0006,1796.7,1796.6,48.86118]
[1746412111218,3.732,1796.7,1796.6,48.86118]
[1746412112626,3.732,1796.7,1796.6,53.86118]
[1746412113221,2.2529,1797.1,1796.9,1.11293]
[1746412113425,2.2529,1797.1,1797.0,5.93864]
[1746412113723,2.2529,1797.1,1797.0,4.82573]
[1746412113923,2.2529,1797.1,1797.0,5.93864]
[1746412114110,5.9849,1797.1,1797.0,5.93864]
[1746412114720,3.732,1797.1,1797.0,5.93864]
[1746412119119,3.732,1797.1,1797.0,10.32854]
[1746412120129,3.2078,1797.3,1797.2,1.11278]
[1746412120323,3.2078,1797.3,1797.2,2.00151]
[1746412120520,2.1327,1797.4,1797.3,1.11272]
[1746412120827,8.49286422,1797.7,1797.5,1.11255]
[1746412121124,2.1762,1797.6,1797.5,2.00128]
[1746412121324,2.1762,1797.6,1797.5,5.92928]
[1746412121522,2.1762,1797.6,1797.5,8.01798]
[1746412122327,5.9082,1797.6,1797.5,8.01798]
[1746412123530,5.9082,1797.6,1797.5,48.81798]
[1746412125826,3.732,1797.6,1797.5,48.81798]
[1746412126025,3.732,1797.6,1797.5,51.00408]
[1746412126230,5.8907,1797.6,1797.5,51.00408]
[1746412128423,3.732,1797.6,1797.5,51.00408]
[1746412131630,3.732,1797.6,1797.5,48.91538]
[1746412132132,5.9593,1797.6,1797.5,48.91538]
[1746412132626,3.732,1797.6,1797.5,50.99808]
[1746412133530,6.9398,1797.6,1797.1,3.2078]
[1746412133732,3.2078,1796.9,1795.4,3.2078]
[1746412133932,3.2078,1794.3,1794.2,15.41650939]
[1746412134138,7.23829483,1794.3,1793.0,64.66133381]
[1746412134431,7.23829483,1794.3,1793.7,11.1368]
[1746412134432,3.2078,1794.1,1793.7,11.1368]
[1746412134628,3.2078,1794.1,1793.8,4.42]
[1746412135030,3.2078,1794.1,1794.0,11.1368]
[1746412135233,3.73698558,1794.1,1794.0,11.1368]
[1746412135425,3.73698558,1794.1,1794.0,21.56190597]
[1746412135626,3.73698558,1794.1,1794.0,23.75090597]
[1746412136026,3.73698558,1794.1,1794.0,28.17290597]
[1746412137232,3.73698558,1794.1,1794.0,8.154]
[1746412137432,3.73698558,1794.1,1794.0,31.80750597]
[1746412137840,4.4477641,1794.1,1794.0,31.80750597]
[1746412138228,4.4477641,1794.1,1794.0,28.07550597]
[1746412138925,4.4477641,1794.1,1794.0,34.19027597]
[1746412139132,3.2078,1794.4,1794.0,15.2456]
[1746412139329,3.2078,1794.4,1794.2,1.11464]
[1746412139625,3.2078,1794.4,1794.3,13.3364]
[1746412139830,9.2274808,1794.5,1794.3,13.3364]
[1746412140028,9.2274808,1794.5,1794.4,17.7604]
[1746412142138,3.2078,1794.6,1794.4,17.7604]
[1746412142438,3.2078,1794.6,1794.5,4.03017385]
[1746412142637,3.2078,1794.6,1794.5,6.34077385]
[1746412142835,4.32219,1794.6,1794.5,6.34077385]
[1746412143143,22.2674423,1794.6,1794.5,6.34077385]
[1746412143433,1.11446,1794.5,1794.4,3.95661121]
[1746412143732,1.11446,1794.5,1794.4,4.425]
[1746412144038,1.11459,1794.3,1793.9,53.13582]
[1746412144238,3.2078,1794.3,1794.1,1.11468]
[1746412144632,3.2078,1794.3,1794.2,1.11464]
[1746412144836,30.3805331,1794.5,1794.0,7.6328]
[1746412145033,30.3805331,1794.5,1794.3,1.11458]
[1746412145234,26.6485331,1794.5,1794.4,5.53952]
[1746412145932,12.4352808,1794.5,1794.4,5.53952]
[1746412146434,12.4352808,1794.5,1794.4,1.27520007]
[1746412146636,12.4352808,1794.5,1794.4,2.38972007]
[1746412147347,3.2078,1794.5,1794.4,2.38972007]
[1746412148241,6.9398,1794.5,1794.4,2.38972007]
[1746412149143,3.2078,1794.5,1794.4,2.38972007]
[1746412151343,3.74004806,1794.5,1794.4,2.38972007]
[1746412152343,3.2078,1794.5,1794.4,2.38972007]
[1746412152940,12.4352808,1794.7,1794.6,1.11439]
[1746412153446,12.96777221,1794.7,1794.6,1.11439]
[1746412154239,12.4352808,1794.7,1794.6,1.11439]
[1746412155550,12.94923965,1794.7,1794.6,1.11439]
[1746412155947,9.2274808,1794.7,1794.6,1.11439]
[1746412158150,12.9594808,1794.7,1794.6,1.11439]
[1746412158850,13.47534309,1794.7,1794.6,1.11439]
[1746412162152,9.74334309,1794.7,1794.6,1.11439]
[1746412162348,9.74334309,1794.7,1794.3,2.78639]
[1746412162349,14.74334309,1794.7,1794.2,3.2078]
[1746412162546,14.74334309,1794.7,1794.3,6.6778]
[1746412162547,1.11451,1794.5,1794.3,6.6778]
[1746412162745,3.57912137,1794.4,1794.3,6.6778]
[1746412163051,4.09498366,1794.4,1794.3,5.54058]
[1746412163245,7.82698366,1794.4,1794.3,5.54058]
[1746412163551,8.26732406,1794.4,1794.3,5.54058]
[1746412164046,7.79836042,1794.4,1794.3,5.54058]
[1746412165755,7.77371998,1794.4,1794.3,5.54058]
[1746412166150,7.7737416,1794.4,1794.3,5.54058]
[1746412166452,7.28650255,1794.4,1794.3,4.379]
[1746412166748,7.28650255,1794.4,1794.3,5.49358]
[1746412166948,4.07870255,1794.4,1794.3,8.70138]
[1746412167154,0.34670255,1794.4,1794.3,8.70138]
[1746412167451,6.56394145,1794.7,1794.5,1.11445]
[1746412167652,0.34681868,1794.6,1794.5,1.11445]
[1746412168153,4.07881868,1794.6,1794.5,1.11445]
[1746412169148,4.07881868,1794.6,1794.5,4.379]
[1746412169353,4.0466871,1794.6,1794.5,5.49344]
[1746412170549,3.732,1794.6,1794.5,5.49344]
[1746412171157,3.2078,1794.8,1794.7,1.11433]
[1746412171455,3.52233342,1794.8,1794.7,1.11433]
[1746412172048,3.52233342,1794.8,1794.5,4.379]
[1746412172355,3.2078,1794.6,1794.5,5.49344]
[1746412172556,3.52233342,1794.6,1794.5,5.49344]
[1746412173059,3.52233342,1794.6,1794.4,1.11448]
[1746412173354,0.31453342,1794.5,1794.4,1.11452]
[1746412173554,0.31453342,1794.5,1794.4,5.49252]
[1746412174256,4.04653342,1794.5,1794.4,5.49252]
[1746412174759,4.04684654,1794.5,1794.4,5.49252]
[1746412175257,10.20697554,1794.5,1794.4,5.49252]
[1746412175459,10.20697554,1794.5,1794.4,4.378]
[1746412175658,10.20697554,1794.5,1794.4,5.49252]
[1746412176159,12.03094968,1794.5,1794.4,5.49252]
[1746412176455,11.71610314,1794.5,1794.4,5.49252]
[1746412176659,12.03099112,1794.5,1794.4,5.49252]
[1746412178460,17.67797928,1794.5,1794.4,5.49252]
[1746412180459,17.67797928,1794.5,1794.4,1.11452]
[1746412180760,19.97197928,1794.5,1794.4,5.49252]
[1746412180959,69.21801616,1794.5,1794.4,5.49252]
[1746412182060,69.21827708,1794.5,1794.4,5.49252]
[1746412183273,40.79422098,1794.5,1794.4,5.49252]
[1746412183480,53.36059734,1794.5,1794.4,4.378]
[1746412183774,53.36059734,1794.5,1794.4,5.49252]
[1746412185277,51.06659734,1794.5,1794.4,5.49252]
[1746412185872,50.75144844,1794.5,1794.4,5.49252]
[1746412186079,51.06650029,1794.5,1794.4,5.49252]
[1746412187080,49.6677751,1794.5,1794.4,5.49252]
[1746412189077,49.35272325,1794.5,1794.4,5.49252]
[1746412189277,45.62072325,1794.5,1794.4,5.49252]
[1746412189480,13.6310913,1794.5,1794.4,5.49252]
[1746412191075,13.6310913,1794.5,1794.4,7.64302]
[1746412191283,13.6310913,1794.5,1794.4,12.64302]
[1746412191784,3.08875365,1794.5,1794.4,12.64302]
[1746412191980,11.11689217,1794.5,1794.4,12.64302]
[1746412192279,11.11689217,1794.5,1794.4,10.49252]
[1746412192583,9.54782217,1794.5,1794.4,5.49252]
[1746412192770,8.30902217,1794.5,1794.4,5.49252]
[1746412192975,7.14834217,1794.5,1794.4,10.49252]
[1746412193175,6.03264217,1794.5,1794.4,10.49252]
[1746412193480,3.50987217,1794.5,1794.4,10.49252]
[1746412193679,2.22480217,1794.5,1794.4,5.49252]
[1746412194170,2.15777822,1794.5,1794.4,9.22452]
[1746412195185,2.15777822,1794.5,1794.4,5.49252]
[1746412195775,10.64939267,1794.8,1794.4,5.49252]
[1746412195980,10.64939267,1794.8,1794.7,1.11433]
[1746412196182,14.38139267,1794.8,1794.7,1.11433]
[1746412199183,6.9398,1794.8,1794.7,1.11433]
[1746412201283,3.2078,1795.0,1794.7,4.32213]
[1746412201581,3.2078,1795.0,1794.9,1.11421]
[1746412201975,3.732,1795.1,1795.0,1.11415]
[1746412202683,3.732,1795.1,1795.0,4.32195]
[1746412203484,3.732,1795.1,1795.0,6.49065]
[1746412204175,7.43322844,1795.3,1795.2,1.11402]
[1746412204480,7.43322844,1795.3,1795.2,5.88336316]
[1746412205184,11.16522844,1795.3,1795.2,5.88336316]
[1746412206589,11.16522844,1795.3,1795.2,9.09116316]
[1746412206776,0.94618981,1795.3,1795.2,9.09116316]
[1746412206971,7.43322844,1795.4,1795.3,1.11396]
[1746412207176,11.16522844,1795.4,1795.3,3.18236]
[1746412207384,11.16522844,1795.4,1795.2,6.89780819]
[1746412207583,11.16522844,1795.4,1795.3,1.11396]
[1746412209277,3.732,1795.4,1795.3,1.11396]
[1746412210186,5.56581659,1795.5,1795.4,1.1139]
[1746412211085,9.29781659,1795.5,1795.4,1.1139]
[1746412214087,1.1139,1795.4,1795.1,1.11405]
[1746412214388,2.2006,1795.4,1795.3,1.11396]
[1746412215081,5.9326,1795.4,1795.3,1.11396]
[1746412216778,5.9326,1795.4,1795.3,3.21036]
[1746412217183,2.2006,1795.4,1795.3,3.21036]
[1746412217892,5.90257254,1795.4,1795.3,3.21036]
[1746412218494,3.70197254,1795.4,1795.3,3.21036]
[1746412218690,3.41497255,1795.4,1795.3,3.21036]
[1746412220691,4.95915449,1795.6,1795.5,1.11384]
[1746412220996,2.1219,1795.7,1795.6,1.11377]
[1746412221192,2.1219,1795.7,1795.6,5.30477]
[1746412223594,4.95915449,1795.8,1795.7,1.11371]
[1746412223796,4.95915449,1795.8,1795.7,6.50161]
[1746412223995,3.66511942,1795.8,1795.7,8.60401]
[1746412224193,0.88014714,1795.8,1795.7,12.33601]
[1746412225504,7.43322844,1796.0,1795.9,1.11359]
[1746412226105,7.43322844,1796.0,1795.9,5.17359]
[1746412228899,7.43322844,1796.0,1795.9,8.38139]
[1746412229100,5.46512844,1796.0,1795.9,12.11339]
[1746412229304,4.25838844,1796.0,1795.9,12.11339]
[1746412229496,1.47400549,1796.0,1795.9,12.11339]
[1746412229697,9.25493137,1796.2,1796.1,1.11346]
[1746412234401,9.25493137,1796.2,1795.9,7.2678]
[1746412234598,2.175,1796.1,1796.0,5.17253]
[1746412234799,9.25493137,1796.2,1796.1,1.11346]
[1746412234998,3.2078,1796.4,1796.2,1.1134]
[1746412234999,2.175,1796.3,1796.2,1.1134]
[1746412236709,2.175,1796.3,1796.2,1.6761321]
[1746412238104,9.0318,1796.6,1796.5,1.11322]
[1746412238307,1.63,1796.7,1796.6,1.11315]
[1746412239109,3.732,1796.7,1796.6,1.11315]
[1746412239408,5.9763,1796.7,1796.6,1.11315]
[1746412240103,5.9763,1796.7,1796.5,5.17118]
[1746412240609,5.9763,1796.7,1796.6,1.11315]
[1746412241006,5.9763,1796.7,1796.5,4.058]
[1746412241212,1.11331,1796.4,1795.9,3.2078]
[1746412241508,2.2518,1796.3,1796.2,1.1134]
[1746412242406,2.2518,1796.3,1795.9,5.5104]
[1746412242600,3.36514,1796.3,1796.0,5.17149]
[1746412243313,2.2518,1796.3,1796.0,5.17149]
[1746412243513,2.2518,1796.3,1796.1,1.11346]
[1746412243811,2.2518,1796.3,1796.0,4.058]
[1746412244116,1.1136,1795.9,1795.4,52.07]
[1746412244312,2.2412,1795.8,1795.6,1.11376]
[1746412245012,3.35485,1795.8,1795.5,4.058]
[1746412245316,3.8705,1795.8,1795.5,5.17181]
[1746412245613,3.8705,1795.8,1795.6,1.11372]
[1746412245814,2.2412,1795.8,1795.7,1.11371]
[1746412246108,5.824,1796.2,1795.7,4.84571]
[1746412246314,2.252,1796.1,1796.0,1.11351]
[1746412246515,2.252,1796.1,1796.0,5.17151]
[1746412248409,2.96203098,1796.1,1796.0,4.058]
[1746412248607,2.96203098,1796.1,1796.0,5.17153]
[1746412249017,2.96203098,1796.1,1796.0,4.058]
[1746412249717,2.96203098,1796.1,1796.0,5.17153]
[1746412252116,2.96203098,1796.1,1796.0,8.90353]
[1746412252315,2.96203098,1796.1,1796.0,7.79]
[1746412252520,12.59423887,1796.1,1796.0,3.732]
[1746412252716,14.22253887,1796.1,1796.0,3.732]
[1746412253115,17.95453887,1796.1,1795.9,4.058]
[1746412253324,1.42449529,1796.0,1795.9,4.058]
[1746412253515,9.36879529,1796.0,1795.9,4.058]
[1746412253814,13.25526529,1796.0,1795.7,1.11367]
[1746412254019,3.2078,1795.8,1795.7,1.11367]
[1746412255926,3.91783098,1795.8,1795.7,1.11367]
[1746412256623,5.03148098,1795.8,1795.6,5.17173]
[1746412256818,2.0418,1795.7,1795.6,5.17173]
[1746412257725,3.15551,1795.7,1795.6,4.058]
[1746412258116,2.0418,1795.7,1795.6,5.17177]
[1746412258623,2.75183098,1795.7,1795.6,5.17177]
[1746412259520,2.75183098,1795.7,1795.6,7.22357]
[1746412259924,0.71003098,1795.7,1795.6,7.22357]
[1746412261220,0.71003098,1795.7,1795.6,9.87457]
[1746412264627,0.71003098,1795.8,1795.7,1.11371]
[1746412264827,0.71003098,1795.8,1795.7,3.21061]
[1746412265221,0.71003098,1795.8,1795.7,6.94261]
[1746412267227,0.71003098,1795.8,1795.7,5.8289]
[1746412267428,2.90723098,1795.9,1795.7,3.732]
[1746412267630,2.90723098,1795.9,1795.8,1.11365]
[1746412267824,2.90723098,1795.9,1795.7,7.03047]
[1746412268127,2.90723098,1795.9,1795.7,2.76996442]
[1746412268327,2.2494,1795.8,1795.7,2.76996442]
[1746412268631,5.4572,1795.8,1795.6,5.17174]
[1746412268928,6.16723098,1795.8,1795.7,1.11371]
[1746412271221,6.16723098,1795.8,1795.7,3.19911]
[1746412272832,3.91783098,1795.8,1795.7,3.19911]
[1746412273330,3.91783098,1795.8,1795.7,6.93111]
[1746412273533,0.71003098,1795.8,1795.7,6.93111]
[1746412276632,2.77943098,1795.8,1795.7,6.93111]
[1746412277329,2.0694,1795.8,1795.7,6.93111]
[1746412277529,0.71003098,1795.9,1795.8,1.11365]
[1746412277729,0.71003098,1795.9,1795.8,5.26905]
[1746412278135,0.71003098,1795.9,1795.8,9.00105]
[1746412283933,0.71003098,1795.9,1795.8,11.60815]
[1746412284531,7.41066427,1796.1,1796.0,1.11353]
[1746412284830,7.41066427,1796.1,1796.0,5.08853]
[1746412285139,7.41066427,1796.1,1796.0,8.82053]
[1746412286137,7.41066427,1796.1,1796.0,5.08853]
[1746412286634,6.11606427,1796.1,1796.0,5.08853]
[1746412286841,4.91797021,1796.1,1796.0,5.08853]
[1746412287027,4.26597021,1796.1,1796.0,8.42453]
[1746412287227,2.20537021,1796.1,1796.0,17.15653]
[1746412287432,6.11606427,1796.3,1796.2,1.1134]
[1746412287740,6.11606427,1796.3,1796.2,4.3212]
[1746412287928,1.51193993,1796.3,1796.2,4.3212]
[1746412288132,7.29506424,1796.5,1796.4,1.11328]
[1746412288333,1.7264844,1796.5,1796.4,8.29308]
[1746412288831,1.7264844,1796.5,1796.4,11.55748]
[1746412289140,1.7264844,1796.5,1796.4,15.28948]
[1746412290040,3.4585,1796.8,1796.4,15.28948]
[1746412290041,3.4585,1796.8,1796.7,1.11309]
[1746412290230,3.4585,1796.8,1796.7,5.08509]
[1746412294142,3.4585,1796.8,1796.7,8.33359]
[1746412305449,3.4585,1796.8,1796.7,3.972]
[1746412305653,3.4585,1796.8,1796.7,5.08509]
[1746412306044,7.1905,1796.8,1796.7,5.08509]
[1746412306450,7.1905,1796.8,1796.7,8.45749]
[1746412307153,3.4585,1796.8,1796.7,8.45749]
[1746412308848,3.4585,1796.8,1796.7,3.972]
[1746412309053,9.57153,1796.8,1796.7,3.972]
[1746412309252,13.30353,1796.8,1796.7,3.972]
[1746412309553,21.3337,1796.8,1796.3,55.3873]
[1746412309749,4.32102,1796.5,1796.4,3.971]
[1746412310150,8.05302,1796.5,1796.4,3.971]
[1746412312053,13.36340095,1796.5,1796.4,3.971]
[1746412312861,6.9398,1796.5,1796.4,5.08428]
[1746412313165,8.05302,1796.5,1796.4,3.971]
[1746412313350,11.08672152,1796.5,1796.4,5.08428]
[1746412314263,11.08672152,1796.5,1796.4,3.971]
[1746412314964,12.19994152,1796.5,1796.4,3.971]
[1746412315156,12.51038576,1796.5,1796.4,3.971]
[1746412315356,12.51038576,1796.5,1796.4,5.08428]
[1746412315357,11.39716576,1796.5,1796.4,5.08428]
[1746412315559,12.51038576,1796.5,1796.4,3.971]
[1746412315857,12.19994152,1796.5,1796.4,3.971]
[1746412316866,12.51041103,1796.5,1796.4,3.971]
[1746412317166,12.19994152,1796.5,1796.4,3.971]
[1746412317664,12.51040043,1796.5,1796.4,3.971]
[1746412317966,12.51039465,1796.5,1796.4,3.971]
[1746412318165,12.19994152,1796.5,1796.4,3.971]
[1746412320570,12.51030325,1796.5,1796.4,3.971]
[1746412321065,12.19994152,1796.5,1796.4,3.971]
[1746412322862,11.08672152,1796.5,1796.4,8.59358]
[1746412323062,12.19994152,1796.5,1796.4,7.4803]
[1746412323265,12.19994152,1796.5,1796.4,3.971]
[1746412323465,11.08672152,1796.5,1796.4,3.971]
[1746412323868,12.19994152,1796.5,1796.4,3.971]
[1746412325260,12.51021963,1796.5,1796.4,3.971]
[1746412325468,12.19994152,1796.5,1796.4,3.971]
[1746412326374,8.99214152,1796.5,1796.4,3.971]
[1746412326573,12.19994152,1796.5,1796.4,3.971]
[1746412326972,12.51031716,1796.5,1796.4,3.971]
[1746412327172,12.19994152,1796.5,1796.4,3.971]
[1746412327362,11.08672152,1796.5,1796.4,5.08428]
[1746412327971,12.19994152,1796.5,1796.4,5.08428]
[1746412328969,11.08672152,1796.5,1796.4,5.08428]
[1746412329673,7.64972152,1796.5,1796.4,5.08428]
[1746412329860,7.64972152,1796.5,1796.4,4.78988824]
[1746412330962,7.64972152,1796.5,1796.4,9.78988824]
[1746412331167,0.70992152,1796.5,1796.4,9.78988824]
[1746412331672,0.70992152,1796.5,1796.4,11.89518824]
[1746412332074,4.44192152,1796.5,1796.4,11.89518824]
[1746412336167,0.70992152,1796.5,1796.4,11.89518824]
[1746412336375,0.70992152,1796.5,1796.4,15.46498824]
[1746412337070,11.02305676,1796.8,1796.7,1.11309]
[1746412337267,7.71398509,1796.8,1796.7,5.07809]
[1746412337869,7.40375676,1796.8,1796.7,5.07809]
[1746412338174,11.44621726,1796.8,1796.7,5.07809]
[1746412339077,11.13575676,1796.8,1796.7,5.07809]
[1746412339975,4.44172444,1796.8,1796.7,5.07809]
[1746412343275,0.70972444,1796.8,1796.7,5.07809]
[1746412343473,0.70972444,1796.8,1796.7,8.56949]
[1746412346682,7.40375676,1797.0,1796.8,1.11303]
[1746412346683,3.709089,1796.9,1796.8,1.11303]
[1746412346874,3.709089,1796.9,1796.8,11.32013]
[1746412349675,4.41881344,1797.0,1796.9,1.11297]
[1746412349876,3.709089,1797.0,1796.9,4.66117]
[1746412350276,10.834089,1797.0,1796.9,4.66117]
[1746412350771,7.441089,1797.0,1796.9,4.66117]
[1746412352684,5.52399752,1797.3,1797.2,1.11278]
[1746412352885,5.52399752,1797.3,1797.2,5.06778]
[1746412353088,12.76219752,1797.3,1797.2,5.06778]
[1746412353485,12.76219752,1797.3,1797.2,8.29458]
[1746412354883,12.76219752,1797.3,1797.2,8.81523921]
[1746412355190,9.25599752,1797.3,1797.2,8.81523921]
[1746412355490,9.25599752,1797.3,1797.2,12.23323921]
[1746412355887,9.25599752,1797.3,1797.2,15.68123921]
[1746412357092,3.5062,1797.4,1797.3,1.11272]
[1746412357394,3.5062,1797.4,1797.2,17.7798]
[1746412357594,3.5062,1797.4,1797.3,1.11272]
[1746412358094,3.5062,1797.4,1797.3,4.84472]
[1746412361396,3.5062,1797.4,1797.3,8.10622]
[1746412363301,3.2078,1797.6,1797.5,1.1126]
[1746412363498,6.6445,1797.6,1797.5,5.0666]
[1746412363701,3.4367,1797.6,1797.5,5.0666]
[1746412364300,3.4367,1797.6,1797.5,12.2028]
[1746412366005,3.2078,1797.9,1797.8,1.11241]
[1746412366199,3.2078,1797.9,1797.8,5.06641]
[1746412367203,3.2078,1797.9,1797.8,8.79841]
[1746412367406,6.4567,1797.9,1797.8,8.79841]
[1746412368106,7.16605468,1797.9,1797.8,7.25087323]
[1746412368403,7.16605468,1797.9,1797.8,8.36328323]
[1746412369011,12.47485867,1797.9,1797.5,3.954]
[1746412369300,7.07220399,1797.8,1797.6,1.11253]
[1746412369498,7.0195,1797.7,1797.6,1.11253]
[1746412369900,3.5556,1797.7,1797.6,1.11253]
[1746412370100,3.5556,1797.7,1797.6,8.00253]
[1746412370508,3.2078,1797.8,1797.7,1.11247]
[1746412370708,3.2078,1797.8,1797.7,4.54897]
[1746412371310,3.2078,1797.8,1797.7,8.28097]
[1746412371507,6.7634,1797.9,1797.8,1.11241]
[1746412371801,6.7634,1797.9,1797.8,8.55531]
[1746412372106,6.7634,1797.9,1797.8,12.28731]
[1746412372707,6.7634,1797.9,1797.8,8.79841]
[1746412373006,3.5556,1797.9,1797.8,7.686]
[1746412373202,6.7634,1797.9,1797.8,7.686]
[1746412375510,7.87575,1797.9,1797.8,7.686]
[1746412376211,8.18443233,1797.9,1797.8,7.686]
[1746412376609,6.7634,1797.9,1797.8,7.686]
[1746412377204,7.87575,1797.9,1797.8,7.686]
[1746412377713,7.88101947,1797.9,1797.8,7.686]
[1746412377914,6.76866947,1797.9,1797.8,8.79841]
[1746412378314,7.47808527,1797.9,1797.8,8.79841]
[1746412378611,4.27028527,1797.9,1797.8,8.79841]
[1746412379014,0.71468527,1797.9,1797.8,8.79841]
[1746412379217,0.71468527,1797.9,1797.8,12.15931]
[1746412379915,4.24118527,1797.9,1797.8,12.15931]
[1746412381116,3.53176947,1797.9,1797.8,12.15931]
[1746412381616,3.53176947,1797.9,1797.8,11.0469]
[1746412383217,3.53176947,1797.9,1797.8,12.15931]
[1746412383419,3.53176947,1797.9,1797.8,15.74241]
[1746412383619,0.00526947,1797.9,1797.8,15.74241]
[1746412383812,0.00526947,1797.9,1797.8,14.63]
[1746412384218,4.32541947,1797.9,1797.8,7.686]
[1746412384521,11.48263841,1797.9,1797.8,7.686]
[1746412384816,11.4826422,1797.9,1797.8,7.686]
[1746412387323,22.3066422,1797.9,1797.8,7.686]
[1746412387616,23.01604584,1797.9,1797.8,7.686]
[1746412388122,26.46884584,1797.9,1797.8,7.686]
[1746412388420,26.46908038,1797.9,1797.8,7.686]
[1746412388621,21.46908038,1797.9,1797.8,7.686]
[1746412389222,21.46908038,1797.9,1797.8,3.732]
[1746412389619,1.11253,1797.6,1797.5,3.943]
[1746412389817,4.62948727,1797.6,1797.5,3.943]
[1746412390122,4.62948727,1797.6,1797.5,7.675]
[1746412390316,4.62951955,1797.6,1797.5,7.675]
[1746412391031,0.30918955,1797.6,1797.5,8.7876]
[1746412391822,0.30918955,1797.6,1797.5,8.47374145]
[1746412392016,0.3092894,1797.6,1797.5,8.47374145]
[1746412392927,0.70940364,1797.6,1797.5,8.47374145]
[1746412393422,1.01867124,1797.6,1797.5,8.47374145]
[1746412393924,1.01867159,1797.6,1797.5,8.47374145]
[1746412394128,1.01863136,1797.6,1797.5,8.47374145]
[1746412394316,0.70940364,1797.6,1797.5,13.47374145]